[Event "Titled Tuesday Blitz October 11 Late 2022"]
[White "Goryachkina, Aleksandra"]
[Black "Balkum, Alexander"]
[WhiteFideId "4147103"]
[BlackFideId "2005069"]
[WhiteElo "2484"]
[BlackElo "2353"]
[Result "1-0"]
[Round "01"]
[TimeControl "180+1"]
[Date "2022.10.12"]
[WhiteClock "0:00:19"]
[BlackClock "0:00:03"]

1. e4 {[%clk 0:02:59]}  c5 {[%clk 0:02:59]} 2. Nf3 {[%clk 0:02:57]}  Nc6 {[%clk 0:02:58]} 3. Bb5 {[%clk 0:02:56]}  g6 {[%clk 0:02:57]} 4. O-O {[%clk 0:02:55]}  Bg7 {[%clk 0:02:57]} 5. Re1 {[%clk 0:02:55]}  Nf6 {[%clk 0:02:57]} 6. c3 {[%clk 0:02:50]}  O-O {[%clk 0:02:57]} 7. h3 {[%clk 0:02:46]}  Qb6 {[%clk 0:02:38]} 8. Na3 {[%clk 0:02:45]}  a6 {[%clk 0:02:34]} 9. Bf1 {[%clk 0:02:44]}  e5 {[%clk 0:02:30]} 10. Nc4 {[%clk 0:02:35]}  Qc7 {[%clk 0:02:30]} 11. d4 {[%clk 0:02:34]}  exd4 {[%clk 0:02:19]} 12. cxd4 {[%clk 0:02:32]}  b5 {[%clk 0:02:17]} 13. d5 {[%clk 0:02:22]}  Nd4 {[%clk 0:01:31]} 14. Nxd4 {[%clk 0:02:22]}  cxd4 {[%clk 0:01:32]} 15. Nd2 {[%clk 0:02:20]}  Re8 {[%clk 0:01:12]} 16. Bd3 {[%clk 0:02:19]}  d6 {[%clk 0:01:11]} 17. Nf3 {[%clk 0:02:14]}  Nd7 {[%clk 0:01:11]} 18. Bf4 {[%clk 0:02:10]}  Ne5 {[%clk 0:01:06]} 19. Rc1 {[%clk 0:02:08]}  Nxf3+ {[%clk 0:00:57]} 20. Qxf3 {[%clk 0:02:07]}  Qe7 {[%clk 0:00:58]} 21. Rc6 {[%clk 0:02:00]}  Be5 {[%clk 0:00:44]} 22. Rec1 {[%clk 0:01:51]}  Bd7 {[%clk 0:00:42]} 23. Rc7 {[%clk 0:01:49]}  Rac8 {[%clk 0:00:38]} 24. Bd2 {[%clk 0:01:30]}  Rxc7 {[%clk 0:00:37]} 25. Rxc7 {[%clk 0:01:31]}  Rc8 {[%clk 0:00:37]} 26. Rxc8+ {[%clk 0:01:28]}  Bxc8 {[%clk 0:00:38]} 27. Qd1 {[%clk 0:01:25]}  Qc7 {[%clk 0:00:37]} 28. f4 {[%clk 0:01:20]}  Bg7 {[%clk 0:00:36]} 29. Qc2 {[%clk 0:01:19]}  Qxc2 {[%clk 0:00:31]} 30. Bxc2 {[%clk 0:01:20]}  Kf8 {[%clk 0:00:27]} 31. Bb4 {[%clk 0:01:17]}  Ke7 {[%clk 0:00:26]} 32. e5 {[%clk 0:01:17]}  Bb7 {[%clk 0:00:20]} 33. Bxd6+ {[%clk 0:01:16]}  Kd7 {[%clk 0:00:21]} 34. Be4 {[%clk 0:01:16]}  f5 {[%clk 0:00:18]} 35. Bf3 {[%clk 0:01:13]}  Bh6 {[%clk 0:00:15]} 36. g3 {[%clk 0:01:10]}  g5 {[%clk 0:00:15]} 37. Bb8 {[%clk 0:00:57]}  gxf4 {[%clk 0:00:14]} 38. gxf4 {[%clk 0:00:57]}  Kc8 {[%clk 0:00:13]} 39. e6 {[%clk 0:00:55]}  Bf8 {[%clk 0:00:10]} 40. Be5 {[%clk 0:00:50]}  Kd8 {[%clk 0:00:08]} 41. Kf2 {[%clk 0:00:49]}  Bc8 {[%clk 0:00:07]} 42. Bxd4 {[%clk 0:00:47]}  Bd6 {[%clk 0:00:07]} 43. Be5 {[%clk 0:00:46]}  Ke7 {[%clk 0:00:08]} 44. Bxd6+ {[%clk 0:00:38]}  Kxd6 {[%clk 0:00:09]} 45. Ke3 {[%clk 0:00:38]}  Bb7 {[%clk 0:00:08]} 46. Kd4 {[%clk 0:00:38]}  Bc8 {[%clk 0:00:08]} 47. Be2 {[%clk 0:00:37]}  Bb7 {[%clk 0:00:08]} 48. Bd3 {[%clk 0:00:37]}  Bxd5 {[%clk 0:00:08]} 49. e7 {[%clk 0:00:22]}  Bf7 {[%clk 0:00:08]} 50. a3 {[%clk 0:00:22]}  Kxe7 {[%clk 0:00:08]} 51. Bxf5 {[%clk 0:00:22]}  h6 {[%clk 0:00:08]} 52. Bc8 {[%clk 0:00:21]}  a5 {[%clk 0:00:08]} 53. Kc5 {[%clk 0:00:21]}  Be8 {[%clk 0:00:05]} 54. Bf5 {[%clk 0:00:19]}  Kf6 {[%clk 0:00:04]} 55. Bd3 {[%clk 0:00:19]}  Bd7 {[%clk 0:00:03]} 56. h4 {[%clk 0:00:19]} 1-0


[Site "https://www.chess.com"]

[Event "Titled Tuesday Blitz October 11 Late 2022"]
[White "Har-Zvi, Ronen"]
[Black "Shohat, Yotam"]
[WhiteFideId "2801485"]
[BlackFideId "2813955"]
[WhiteElo "2802"]
[BlackElo "2439"]
[Result "1-0"]
[Round "01"]
[TimeControl "180+1"]
[Date "2022.10.12"]
[WhiteClock "0:00:20"]
[BlackClock "0:00:04"]

1. Nf3 {[%clk 0:02:36]}  Nf6 {[%clk 0:02:56]} 2. c4 {[%clk 0:02:36]}  g6 {[%clk 0:02:54]} 3. Nc3 {[%clk 0:02:36]}  Bg7 {[%clk 0:02:53]} 4. g3 {[%clk 0:02:37]}  O-O {[%clk 0:02:53]} 5. Bg2 {[%clk 0:02:37]}  d6 {[%clk 0:02:53]} 6. d4 {[%clk 0:02:36]}  Nbd7 {[%clk 0:02:53]} 7. O-O {[%clk 0:02:36]}  e5 {[%clk 0:02:53]} 8. b3 {[%clk 0:02:37]}  Re8 {[%clk 0:02:52]} 9. h3 {[%clk 0:02:34]}  c6 {[%clk 0:02:47]} 10. e4 {[%clk 0:02:32]}  exd4 {[%clk 0:02:38]} 11. Nxd4 {[%clk 0:02:33]}  Nc5 {[%clk 0:02:34]} 12. Re1 {[%clk 0:02:33]}  a5 {[%clk 0:02:29]} 13. Rb1 {[%clk 0:02:32]}  Nfd7 {[%clk 0:02:12]} 14. Be3 {[%clk 0:02:29]}  Ne5 {[%clk 0:02:11]} 15. Qc2 {[%clk 0:02:24]}  Ned3 {[%clk 0:02:08]} 16. Red1 {[%clk 0:02:22]}  Nb4 {[%clk 0:02:08]} 17. Qd2 {[%clk 0:02:22]}  Nba6 {[%clk 0:01:41]} 18. a3 {[%clk 0:02:17]}  Qc7 {[%clk 0:01:31]} 19. b4 {[%clk 0:02:10]}  axb4 {[%clk 0:01:32]} 20. axb4 {[%clk 0:02:10]}  Ne6 {[%clk 0:01:32]} 21. b5 {[%clk 0:02:10]}  Nac5 {[%clk 0:01:30]} 22. bxc6 {[%clk 0:02:10]}  bxc6 {[%clk 0:01:30]} 23. Nxc6 {[%clk 0:01:31]}  Qxc6 {[%clk 0:01:05]} 24. e5 {[%clk 0:01:31]}  Qa6 {[%clk 0:01:04]} 25. exd6 {[%clk 0:01:32]}  Bb7 {[%clk 0:00:54]} 26. Nd5 {[%clk 0:01:30]}  Rab8 {[%clk 0:00:26]} 27. Rb6 {[%clk 0:01:24]}  Qxc4 {[%clk 0:00:22]} 28. Rc1 {[%clk 0:01:06]}  Nb3 {[%clk 0:00:05]} 29. Rxc4 {[%clk 0:01:03]}  Nxd2 {[%clk 0:00:05]} 30. Bxd2 {[%clk 0:01:03]}  Bxd5 {[%clk 0:00:06]} 31. Rxb8 {[%clk 0:01:02]}  Rxb8 {[%clk 0:00:05]} 32. Bxd5 {[%clk 0:01:03]}  Rd8 {[%clk 0:00:06]} 33. Bxe6 {[%clk 0:00:21]}  fxe6 {[%clk 0:00:07]} 34. Bb4 {[%clk 0:00:21]}  Bf8 {[%clk 0:00:04]} 35. Rc6 {[%clk 0:00:21]}  Kf7 {[%clk 0:00:03]} 36. Rc7+ {[%clk 0:00:20]}  Kf6 {[%clk 0:00:04]} 37. Bc3+ {[%clk 0:00:19]}  e5 {[%clk 0:00:02]} 38. Rxh7 {[%clk 0:00:18]}  Bxd6 {[%clk 0:00:01]} 39. Kg2 {[%clk 0:00:19]}  Ke6 {[%clk 0:00:02]} 40. Bd2 {[%clk 0:00:18]}  Kf6 {[%clk 0:00:02]} 41. Be3 {[%clk 0:00:18]}  Ke6 {[%clk 0:00:02]} 42. Ra7 {[%clk 0:00:18]}  Rg8 {[%clk 0:00:02]} 43. Ra6 {[%clk 0:00:18]}  Kd5 {[%clk 0:00:03]} 44. g4 {[%clk 0:00:18]}  Be7 {[%clk 0:00:02]} 45. Ra5+ {[%clk 0:00:18]}  Ke6 {[%clk 0:00:02]} 46. Kf3 {[%clk 0:00:19]}  Kf7 {[%clk 0:00:02]} 47. Ke4 {[%clk 0:00:19]}  Bf6 {[%clk 0:00:03]} 48. Ra7+ {[%clk 0:00:20]}  Ke6 {[%clk 0:00:03]} 49. Ra6+ {[%clk 0:00:20]}  Kf7 {[%clk 0:00:03]} 50. g5 {[%clk 0:00:20]}  Be7 {[%clk 0:00:03]} 51. Ra7 {[%clk 0:00:21]}  Re8 {[%clk 0:00:04]} 52. Bc5 {[%clk 0:00:20]} 1-0


[Site "https://www.chess.com"]

[Event "Titled Tuesday Blitz October 11 Late 2022"]
[White "Hemam, Moulaye Brahim"]
[Black "Souleidis, Georgios"]
[WhiteFideId "19600054"]
[BlackFideId "4206827"]
[WhiteElo "2088"]
[BlackElo "2401"]
[Result "0-1"]
[Round "01"]
[TimeControl "180+1"]
[Date "2022.10.12"]
[WhiteClock "0:00:02"]
[BlackClock "0:00:14"]

1. e4 {[%clk 0:02:59]}  c6 {[%clk 0:02:56]} 2. d4 {[%clk 0:02:58]}  d5 {[%clk 0:02:57]} 3. Nc3 {[%clk 0:02:59]}  dxe4 {[%clk 0:02:57]} 4. Nxe4 {[%clk 0:02:59]}  Nf6 {[%clk 0:02:57]} 5. Nxf6+ {[%clk 0:02:59]}  exf6 {[%clk 0:02:58]} 6. Be3 {[%clk 0:02:59]}  Bd6 {[%clk 0:02:56]} 7. Qd2 {[%clk 0:02:59]}  O-O {[%clk 0:02:56]} 8. O-O-O {[%clk 0:02:58]}  Nd7 {[%clk 0:02:53]} 9. Ne2 {[%clk 0:02:54]}  Re8 {[%clk 0:02:46]} 10. Nc3 {[%clk 0:02:53]}  Nb6 {[%clk 0:02:25]} 11. Kb1 {[%clk 0:02:38]}  Be6 {[%clk 0:02:23]} 12. a3 {[%clk 0:02:35]}  Nd5 {[%clk 0:02:14]} 13. Nxd5 {[%clk 0:02:30]}  cxd5 {[%clk 0:02:06]} 14. Bf4 {[%clk 0:02:22]}  Bf8 {[%clk 0:01:57]} 15. Bd3 {[%clk 0:02:20]}  a6 {[%clk 0:01:53]} 16. h3 {[%clk 0:02:05]}  b5 {[%clk 0:01:52]} 17. g4 {[%clk 0:01:59]}  Qb6 {[%clk 0:01:42]} 18. c3 {[%clk 0:01:51]}  a5 {[%clk 0:01:40]} 19. g5 {[%clk 0:01:31]}  f5 {[%clk 0:01:37]} 20. Qc2 {[%clk 0:01:23]}  b4 {[%clk 0:01:20]} 21. axb4 {[%clk 0:01:00]}  axb4 {[%clk 0:01:20]} 22. Qb3 {[%clk 0:00:59]}  Qa5 {[%clk 0:00:59]} 23. c4 {[%clk 0:00:29]}  dxc4 {[%clk 0:00:50]} 24. Bxc4 {[%clk 0:00:27]}  Bxc4 {[%clk 0:00:41]} 25. Qxc4 {[%clk 0:00:27]}  Rec8 {[%clk 0:00:37]} 26. Qxc8 {[%clk 0:00:15]}  Rxc8 {[%clk 0:00:36]} 27. Rd3 {[%clk 0:00:11]}  Qa4 {[%clk 0:00:27]} 28. Rc1 {[%clk 0:00:10]}  Rxc1+ {[%clk 0:00:19]} 29. Kxc1 {[%clk 0:00:11]}  b3 {[%clk 0:00:18]} 30. Kd2 {[%clk 0:00:09]}  Bb4+ {[%clk 0:00:17]} 31. Ke2 {[%clk 0:00:09]}  Qa2 {[%clk 0:00:18]} 32. d5 {[%clk 0:00:06]}  Qxb2+ {[%clk 0:00:17]} 33. Kf3 {[%clk 0:00:05]}  Qc2 {[%clk 0:00:15]} 34. Ke3 {[%clk 0:00:02]}  Bc5+ {[%clk 0:00:14]} 0-1


[Site "https://www.chess.com"]

[Event "Titled Tuesday Blitz October 11 Late 2022"]
[White "Hnydiuk, Aleksander"]
[Black "Mamedov, Rauf"]
[WhiteFideId "1109057"]
[BlackFideId "13401653"]
[WhiteElo "2374"]
[BlackElo "2650"]
[Result "0-1"]
[Round "01"]
[TimeControl "180+1"]
[Date "2022.10.11"]
[WhiteClock "0:00:14"]
[BlackClock "0:02:10"]

1. e4 {[%clk 0:02:55]}  c5 {[%clk 0:02:59]} 2. Nf3 {[%clk 0:02:54]}  d6 {[%clk 0:02:59]} 3. d4 {[%clk 0:02:54]}  cxd4 {[%clk 0:03:00]} 4. Nxd4 {[%clk 0:02:54]}  Nf6 {[%clk 0:03:00]} 5. Nc3 {[%clk 0:02:55]}  g6 {[%clk 0:03:01]} 6. Be3 {[%clk 0:02:51]}  Bg7 {[%clk 0:03:01]} 7. f3 {[%clk 0:02:51]}  O-O {[%clk 0:03:01]} 8. Qd2 {[%clk 0:02:51]}  Nc6 {[%clk 0:03:01]} 9. O-O-O {[%clk 0:02:51]}  d5 {[%clk 0:03:01]} 10. exd5 {[%clk 0:02:47]}  Nxd5 {[%clk 0:03:02]} 11. Nxc6 {[%clk 0:02:46]}  bxc6 {[%clk 0:03:02]} 12. Bd4 {[%clk 0:02:46]}  e5 {[%clk 0:03:00]} 13. Bc5 {[%clk 0:02:46]}  Be6 {[%clk 0:02:59]} 14. Bc4 {[%clk 0:02:24]}  Nxc3 {[%clk 0:02:50]} 15. Qxc3 {[%clk 0:02:23]}  Qg5+ {[%clk 0:02:49]} 16. Kb1 {[%clk 0:02:14]}  e4 {[%clk 0:02:48]} 17. Bd4 {[%clk 0:02:06]}  Bxd4 {[%clk 0:02:48]} 18. Qxd4 {[%clk 0:01:55]}  Bxc4 {[%clk 0:02:44]} 19. Qxc4 {[%clk 0:01:56]}  e3 {[%clk 0:02:44]} 20. Rhe1 {[%clk 0:01:32]}  Qxg2 {[%clk 0:02:34]} 21. Rxe3 {[%clk 0:01:31]}  Qxh2 {[%clk 0:02:33]} 22. Qxc6 {[%clk 0:01:26]}  Rac8 {[%clk 0:02:32]} 23. Qe4 {[%clk 0:01:20]}  Rfd8 {[%clk 0:02:27]} 24. Rxd8+ {[%clk 0:01:07]}  Rxd8 {[%clk 0:02:27]} 25. b3 {[%clk 0:01:07]}  h5 {[%clk 0:02:27]} 26. Kb2 {[%clk 0:00:54]}  Qd6 {[%clk 0:02:21]} 27. Rd3 {[%clk 0:00:41]}  Qf6+ {[%clk 0:02:21]} 28. c3 {[%clk 0:00:38]}  Rxd3 {[%clk 0:02:20]} 29. Qxd3 {[%clk 0:00:39]}  h4 {[%clk 0:02:21]} 30. Qd7 {[%clk 0:00:31]}  Kg7 {[%clk 0:02:15]} 31. Qg4 {[%clk 0:00:30]}  g5 {[%clk 0:02:14]} 32. Kc2 {[%clk 0:00:29]}  Qf4 {[%clk 0:02:14]} 33. Qh5 {[%clk 0:00:23]}  Qg3 {[%clk 0:02:12]} 34. Kd3 {[%clk 0:00:18]}  h3 {[%clk 0:02:12]} 35. Ke4 {[%clk 0:00:18]}  h2 {[%clk 0:02:12]} 36. Kd5 {[%clk 0:00:14]}  Qh4 {[%clk 0:02:10]} 0-1


[Site "https://www.chess.com"]

[Event "Titled Tuesday Blitz October 11 Late 2022"]
[White "Huber, Benedikt"]
[Black "Bilych, Olexiy"]
[WhiteFideId "12923583"]
[BlackFideId "14156504"]
[WhiteElo "2199"]
[BlackElo "2320"]
[Result "0-1"]
[Round "01"]
[TimeControl "180+1"]
[Date "2022.10.12"]
[WhiteClock "0:02:33"]
[BlackClock "0:02:13"]

1. d4 {[%clk 0:02:54]}  Nf6 {[%clk 0:02:59]} 2. Nc3 {[%clk 0:02:54]}  d5 {[%clk 0:02:59]} 3. Bf4 {[%clk 0:02:55]}  c5 {[%clk 0:02:59]} 4. e4 {[%clk 0:02:55]}  Nxe4 {[%clk 0:02:51]} 5. Nxe4 {[%clk 0:02:54]}  dxe4 {[%clk 0:02:52]} 6. dxc5 {[%clk 0:02:55]}  Qa5+ {[%clk 0:02:39]} 7. c3 {[%clk 0:02:55]}  Qxc5 {[%clk 0:02:36]} 8. Qa4+ {[%clk 0:02:56]}  Nc6 {[%clk 0:02:33]} 9. Qxe4 {[%clk 0:02:56]}  Bf5 {[%clk 0:02:30]} 10. Qa4 {[%clk 0:02:43]}  e5 {[%clk 0:02:17]} 11. Be3 {[%clk 0:02:41]}  Qa5 {[%clk 0:02:17]} 12. Qxa5 {[%clk 0:02:31]}  Nxa5 {[%clk 0:02:17]} 13. Bb5+ {[%clk 0:02:32]}  Bd7 {[%clk 0:02:13]} 14. Nf3 {[%clk 0:02:33]}  Bxb5 {[%clk 0:02:13]} 0-1


[Site "https://www.chess.com"]

[Event "Titled Tuesday Blitz October 11 Late 2022"]
[White "Iliaguev, Nisim"]
[Black "Sarkar, Justin"]
[WhiteFideId "2817276"]
[BlackFideId "2010011"]
[WhiteElo "2264"]
[BlackElo "2250"]
[Result "1-0"]
[Round "01"]
[TimeControl "180+1"]
[Date "2022.10.12"]
[WhiteClock "0:02:30"]
[BlackClock "0:00:01"]

1. d4 {[%clk 0:03:00]}  Nf6 {[%clk 0:02:54]} 2. Nf3 {[%clk 0:03:00]}  d5 {[%clk 0:02:53]} 3. g3 {[%clk 0:03:01]}  e6 {[%clk 0:02:29]} 4. Bg2 {[%clk 0:03:00]}  Be7 {[%clk 0:02:17]} 5. O-O {[%clk 0:03:01]}  O-O {[%clk 0:02:17]} 6. c4 {[%clk 0:03:00]}  c6 {[%clk 0:02:11]} 7. Nc3 {[%clk 0:03:00]}  Nbd7 {[%clk 0:02:06]} 8. Nd2 {[%clk 0:03:00]}  b6 {[%clk 0:01:48]} 9. e4 {[%clk 0:03:00]}  Ba6 {[%clk 0:01:31]} 10. exd5 {[%clk 0:02:55]}  cxd5 {[%clk 0:01:21]} 11. Re1 {[%clk 0:02:52]}  dxc4 {[%clk 0:01:06]} 12. Qa4 {[%clk 0:02:51]}  Qc8 {[%clk 0:00:17]} 13. Bxa8 {[%clk 0:02:49]}  b5 {[%clk 0:00:16]} 14. Nxb5 {[%clk 0:02:49]}  Bxb5 {[%clk 0:00:13]} 15. Qxb5 {[%clk 0:02:49]}  Qxa8 {[%clk 0:00:13]} 16. Qxc4 {[%clk 0:02:49]}  Rc8 {[%clk 0:00:13]} 17. Qd3 {[%clk 0:02:49]}  Nd5 {[%clk 0:00:11]} 18. Qf3 {[%clk 0:02:48]}  Qb8 {[%clk 0:00:03]} 19. Nb3 {[%clk 0:02:48]}  Nb4 {[%clk 0:00:03]} 20. Rf1 {[%clk 0:02:41]}  Nf6 {[%clk 0:00:02]} 21. Bd2 {[%clk 0:02:40]}  Nc2 {[%clk 0:00:01]} 22. Rac1 {[%clk 0:02:33]}  Qb5 {[%clk 0:00:01]} 23. Bc3 {[%clk 0:02:30]}  Nb4 {[%clk 0:00:01]} 24. Bxb4 {[%clk 0:02:30]} 1-0


[Site "https://www.chess.com"]

[Event "Titled Tuesday Blitz October 11 Late 2022"]
[White "Ismagilov, Damir"]
[Black "Sibilio, Mario"]
[WhiteFideId "34199982"]
[BlackFideId "800422"]
[WhiteElo "2106"]
[BlackElo "2296"]
[Result "1-0"]
[Round "01"]
[TimeControl "180+1"]
[Date "2022.10.12"]
[WhiteClock "0:00:07"]
[BlackClock "0:00:01"]

1. e4 {[%clk 0:02:58]}  c5 {[%clk 0:02:58]} 2. Nf3 {[%clk 0:02:57]}  b6 {[%clk 0:02:55]} 3. d4 {[%clk 0:02:57]}  cxd4 {[%clk 0:02:54]} 4. Nxd4 {[%clk 0:02:58]}  Bb7 {[%clk 0:02:54]} 5. Bd3 {[%clk 0:02:55]}  Nc6 {[%clk 0:02:54]} 6. c3 {[%clk 0:02:51]}  Nf6 {[%clk 0:02:50]} 7. Qe2 {[%clk 0:02:51]}  e5 {[%clk 0:02:48]} 8. Nf5 {[%clk 0:02:41]}  d5 {[%clk 0:02:43]} 9. exd5 {[%clk 0:02:42]}  Qxd5 {[%clk 0:02:40]} 10. Ne3 {[%clk 0:02:16]}  Qd6 {[%clk 0:02:25]} 11. Ba6 {[%clk 0:02:07]}  O-O-O {[%clk 0:02:16]} 12. O-O {[%clk 0:01:59]}  Bxa6 {[%clk 0:02:10]} 13. Qxa6+ {[%clk 0:01:58]}  Kb8 {[%clk 0:02:11]} 14. Na3 {[%clk 0:01:52]}  Qd3 {[%clk 0:02:01]} 15. Nac4 {[%clk 0:01:40]}  Bc5 {[%clk 0:01:57]} 16. h3 {[%clk 0:01:28]}  Nd5 {[%clk 0:01:48]} 17. Rd1 {[%clk 0:01:05]}  Nc7 {[%clk 0:01:30]} 18. Rxd3 {[%clk 0:00:46]}  Nxa6 {[%clk 0:01:28]} 19. Rxd8+ {[%clk 0:00:45]}  Rxd8 {[%clk 0:01:27]} 20. b4 {[%clk 0:00:45]}  Bxe3 {[%clk 0:01:23]} 21. Bxe3 {[%clk 0:00:46]}  Nc7 {[%clk 0:01:22]} 22. Bc1 {[%clk 0:00:47]}  Rd1+ {[%clk 0:01:20]} 23. Kh2 {[%clk 0:00:43]}  f6 {[%clk 0:01:19]} 24. Bb2 {[%clk 0:00:41]}  Rxa1 {[%clk 0:01:16]} 25. Bxa1 {[%clk 0:00:42]}  b5 {[%clk 0:01:11]} 26. Nd6 {[%clk 0:00:42]}  a6 {[%clk 0:01:08]} 27. a3 {[%clk 0:00:38]}  Ne6 {[%clk 0:01:03]} 28. c4 {[%clk 0:00:33]}  bxc4 {[%clk 0:01:01]} 29. Nxc4 {[%clk 0:00:32]}  Kc7 {[%clk 0:00:56]} 30. Ne3 {[%clk 0:00:33]}  Ncd4 {[%clk 0:00:54]} 31. Kg3 {[%clk 0:00:30]}  Kc6 {[%clk 0:00:49]} 32. Kg4 {[%clk 0:00:22]}  g6 {[%clk 0:00:48]} 33. Kg3 {[%clk 0:00:18]}  Kb5 {[%clk 0:00:36]} 34. Nd5 {[%clk 0:00:18]}  f5 {[%clk 0:00:35]} 35. Nf6 {[%clk 0:00:11]}  h5 {[%clk 0:00:30]} 36. Nd7 {[%clk 0:00:12]}  g5 {[%clk 0:00:18]} 37. Nxe5 {[%clk 0:00:11]}  f4+ {[%clk 0:00:17]} 38. Kh2 {[%clk 0:00:12]}  Nc2 {[%clk 0:00:16]} 39. Bc3 {[%clk 0:00:11]}  Ka4 {[%clk 0:00:15]} 40. Nc6 {[%clk 0:00:08]}  Kxa3 {[%clk 0:00:14]} 41. Nb8 {[%clk 0:00:08]}  Kb3 {[%clk 0:00:13]} 42. Bd2 {[%clk 0:00:08]}  Nxb4 {[%clk 0:00:13]} 43. Bxb4 {[%clk 0:00:08]}  Kxb4 {[%clk 0:00:12]} 44. Nxa6+ {[%clk 0:00:07]}  Kc4 {[%clk 0:00:12]} 45. Nb8 {[%clk 0:00:06]}  Kd5 {[%clk 0:00:12]} 46. Nd7 {[%clk 0:00:04]}  g4 {[%clk 0:00:11]} 47. Nf6+ {[%clk 0:00:05]}  Ke5 {[%clk 0:00:10]} 48. Nxh5 {[%clk 0:00:05]}  gxh3 {[%clk 0:00:09]} 49. Kxh3 {[%clk 0:00:06]}  Ng5+ {[%clk 0:00:08]} 50. Kg4 {[%clk 0:00:06]}  Ne4 {[%clk 0:00:08]} 51. f3 {[%clk 0:00:05]}  Nf2+ {[%clk 0:00:07]} 52. Kg5 {[%clk 0:00:05]}  Nd3 {[%clk 0:00:06]} 53. Nf6 {[%clk 0:00:06]}  Ne1 {[%clk 0:00:05]} 54. Ng4+ {[%clk 0:00:06]}  Ke6 {[%clk 0:00:05]} 55. Kxf4 {[%clk 0:00:07]}  Nxg2+ {[%clk 0:00:05]} 56. Kg5 {[%clk 0:00:07]}  Kf7 {[%clk 0:00:04]} 57. Ne5+ {[%clk 0:00:07]}  Kg7 {[%clk 0:00:04]} 58. Nd3 {[%clk 0:00:08]}  Ne3 {[%clk 0:00:03]} 59. f4 {[%clk 0:00:08]}  Nd5 {[%clk 0:00:03]} 60. f5 {[%clk 0:00:08]}  Nf6 {[%clk 0:00:03]} 61. Nf4 {[%clk 0:00:08]}  Nh7+ {[%clk 0:00:02]} 62. Kg4 {[%clk 0:00:07]}  Nf6+ {[%clk 0:00:02]} 63. Kf3 {[%clk 0:00:07]}  Nh7 {[%clk 0:00:01]} 64. Nh5+ {[%clk 0:00:07]}  Kh6 {[%clk 0:00:01]} 65. Ng3 {[%clk 0:00:07]}  Kg5 {[%clk 0:00:01]} 66. Ke4 {[%clk 0:00:07]} 1-0


[Site "https://www.chess.com"]

[Event "Titled Tuesday Blitz October 11 Late 2022"]
[White "Janaszak, Dawid"]
[Black "Izuzquiza Gonzalez, Javier"]
[WhiteFideId "1119206"]
[BlackFideId "3101029"]
[WhiteElo "2226"]
[BlackElo "2034"]
[Result "1-0"]
[Round "01"]
[TimeControl "180+1"]
[Date "2022.10.12"]
[WhiteClock "0:00:48"]
[BlackClock "0:00:03"]

1. e4 {[%clk 0:03:00]}  c5 {[%clk 0:02:56]} 2. Nc3 {[%clk 0:02:59]}  Nc6 {[%clk 0:02:55]} 3. Bb5 {[%clk 0:02:59]}  Nd4 {[%clk 0:02:55]} 4. Nf3 {[%clk 0:02:59]}  a6 {[%clk 0:02:53]} 5. Bd3 {[%clk 0:02:56]}  d6 {[%clk 0:02:52]} 6. O-O {[%clk 0:02:56]}  Bg4 {[%clk 0:02:50]} 7. Be2 {[%clk 0:02:50]}  Bxf3 {[%clk 0:02:41]} 8. Bxf3 {[%clk 0:02:50]}  g6 {[%clk 0:02:41]} 9. e5 {[%clk 0:02:44]}  Rb8 {[%clk 0:02:31]} 10. exd6 {[%clk 0:02:44]}  Qxd6 {[%clk 0:02:30]} 11. Ne4 {[%clk 0:02:44]}  Qc7 {[%clk 0:02:30]} 12. c3 {[%clk 0:02:32]}  Nxf3+ {[%clk 0:02:12]} 13. Qxf3 {[%clk 0:02:33]}  Bg7 {[%clk 0:02:12]} 14. d4 {[%clk 0:02:34]}  cxd4 {[%clk 0:02:11]} 15. cxd4 {[%clk 0:02:34]}  Rd8 {[%clk 0:02:01]} 16. Bf4 {[%clk 0:02:28]}  Qc6 {[%clk 0:01:51]} 17. Rac1 {[%clk 0:02:22]}  Qd5 {[%clk 0:01:51]} 18. Rfe1 {[%clk 0:02:05]}  Nf6 {[%clk 0:01:45]} 19. Nd6+ {[%clk 0:01:40]}  Kf8 {[%clk 0:00:47]} 20. Qxd5 {[%clk 0:01:18]}  Nxd5 {[%clk 0:00:45]} 21. Nxb7 {[%clk 0:01:17]}  Re8 {[%clk 0:00:27]} 22. Be5 {[%clk 0:01:15]}  Bxe5 {[%clk 0:00:19]} 23. Rxe5 {[%clk 0:01:16]}  Nf4 {[%clk 0:00:17]} 24. Rc7 {[%clk 0:01:04]}  Ne6 {[%clk 0:00:13]} 25. Rc4 {[%clk 0:01:00]}  Kg7 {[%clk 0:00:11]} 26. d5 {[%clk 0:00:58]}  Nd8 {[%clk 0:00:08]} 27. Na5 {[%clk 0:00:56]}  f6 {[%clk 0:00:05]} 28. Re3 {[%clk 0:00:53]}  Nf7 {[%clk 0:00:06]} 29. Rc7 {[%clk 0:00:50]}  Ne5 {[%clk 0:00:04]} 30. f4 {[%clk 0:00:50]}  Ng4 {[%clk 0:00:01]} 31. Rexe7+ {[%clk 0:00:49]}  Rxe7 {[%clk 0:00:02]} 32. Rxe7+ {[%clk 0:00:50]}  Kh6 {[%clk 0:00:03]} 33. h3 {[%clk 0:00:48]} 1-0


[Site "https://www.chess.com"]